[Event "FIDE U16 Olympiad_boards_1-80"]
[Site "Eindhoven, Netherlands"]
[Date "2023.08.14"]
[Round "2.21"]
[White "Samadov, Read"]
[Black "Suleimen, Ergali"]
[Result "1-0"]
[TimeControl "2700+10"]
[WhiteElo "2355"]
[BlackElo "2095"]

1. Nf3 {[%clk 00:45:16]} {[%emt 00:00:04]} Nf6 {[%clk 00:45:13]} {[%emt
00:00:07]} 2. c4 {[%clk 00:45:23]} {[%emt 00:00:03]} g6 {[%clk 00:44:56]}
{[%emt 00:00:28]} 3. Nc3 {[%clk 00:45:22]} {[%emt 00:00:10]} d5 {[%clk
00:44:40]} {[%emt 00:00:26]} 4. cxd5 {[%clk 00:45:28]} {[%emt 00:00:04]} Nxd5
{[%clk 00:44:49]} {[%emt 00:00:02]} 5. h4 {[%clk 00:45:29]} {[%emt 00:00:08]}
h5 {[%clk 00:42:44]} {[%emt 00:02:16]} 6. e4 {[%clk 00:45:08]} {[%emt
00:00:30]} Nxc3 {[%clk 00:42:10]} {[%emt 00:00:44]} 7. bxc3 {[%clk 00:45:15]}
{[%emt 00:00:03]} Bg7 {[%clk 00:42:03]} {[%emt 00:00:18]} 8. Be2 {[%clk
00:44:48]} {[%emt 00:00:37]} c5 {[%clk 00:41:42]} {[%emt 00:00:31]} 9. d4
{[%clk 00:43:55]} {[%emt 00:01:03]} Nc6 {[%clk 00:37:09]} {[%emt 00:04:43]} 10.
d5 {[%clk 00:43:35]} {[%emt 00:00:29]} Bxc3+ {[%clk 00:35:58]} {[%emt
00:01:22]} 11. Bd2 {[%clk 00:43:32]} {[%emt 00:00:12]} Bxa1 {[%clk 00:35:14]}
{[%emt 00:00:55]} 12. Qxa1 {[%clk 00:43:38]} {[%emt 00:00:03]} Nd4 {[%clk
00:35:22]} {[%emt 00:00:02]} 13. Nxd4 {[%clk 00:43:44]} {[%emt 00:00:05]} cxd4
{[%clk 00:35:30]} {[%emt 00:00:02]} 14. Qxd4 {[%clk 00:43:51]} {[%emt
00:00:02]} O-O {[%clk 00:35:37]} {[%emt 00:00:04]} 15. O-O {[%clk 00:33:14]}
{[%emt 00:10:46]} Qb6 {[%clk 00:29:45]} {[%emt 00:06:03]} 16. Qe5 {[%clk
00:28:15]} {[%emt 00:05:08]} Qf6 {[%clk 00:23:04]} {[%emt 00:06:52]} 17. Qg3
{[%clk 00:28:11]} {[%emt 00:00:14]} Qd4 {[%clk 00:14:55]} {[%emt 00:08:19]} 18.
Bh6 {[%clk 00:24:32]} {[%emt 00:03:49]} Qxe4 {[%clk 00:14:47]} {[%emt
00:00:18]} 19. Bd3 {[%clk 00:22:07]} {[%emt 00:02:34]} Qxd5 {[%clk 00:11:40]}
{[%emt 00:03:18]} 20. Bxg6 {[%clk 00:20:38]} {[%emt 00:01:39]} Bg4 {[%clk
00:11:48]} {[%emt 00:00:02]} 21. Bb1 {[%clk 00:19:40]} {[%emt 00:01:08]} Qd4
{[%clk 00:08:00]} {[%emt 00:03:58]} 22. Kh1 {[%clk 00:16:59]} {[%emt 00:02:51]}
Kh8 {[%clk 00:07:13]} {[%emt 00:00:56]} 23. f3 {[%clk 00:15:18]} {[%emt
00:01:52]} Rg8 {[%clk 00:03:35]} {[%emt 00:03:48]} 24. fxg4 {[%clk 00:14:14]}
{[%emt 00:01:13]} Rxg4 {[%clk 00:03:43]} {[%emt 00:00:02]} 25. Be3 {[%clk
00:13:17]} {[%emt 00:01:07]} Qd5 {[%clk 00:02:50]} {[%emt 00:01:02]} 26. Qf2
{[%clk 00:12:30]} {[%emt 00:00:59]} Rag8 {[%clk 00:02:35]} {[%emt 00:00:25]} 27.
Bg5 {[%clk 00:11:42]} {[%emt 00:00:57]} f6 {[%clk 00:02:21]} {[%emt 00:00:25]}
28. Bxf6+ {[%clk 00:11:21]} {[%emt 00:00:31]} exf6 {[%clk 00:00:16]} {[%emt
00:02:15]} 29. Qxf6+ {[%clk 00:11:29]} {[%emt 00:00:02]} 1-0

[Event "FIDE U16 Olympiad_boards_1-80"]
[Site "Eindhoven, Netherlands"]
[Date "2023.08.14"]
[Round "2.22"]
[White "Nurgaliyev, Sauat"]
[Black "Ahmad, Khagan"]
[Result "1-0"]
[TimeControl "2700+10"]
[WhiteElo "2062"]
[BlackElo "2163"]

1. Nf3 {[%clk 00:45:17]} {[%emt 00:00:02]} c5 {[%clk 00:44:58]} {[%emt
00:00:22]} 2. g3 {[%clk 00:45:06]} {[%emt 00:00:20]} Nf6 {[%clk 00:44:50]}
{[%emt 00:00:18]} 3. Bg2 {[%clk 00:45:10]} {[%emt 00:00:07]} g6 {[%clk
00:44:49]} {[%emt 00:00:11]} 4. O-O {[%clk 00:43:39]} {[%emt 00:01:41]} Bg7
{[%clk 00:44:58]} {[%emt 00:00:01]} 5. c3 {[%clk 00:38:36]} {[%emt 00:05:13]}
d5 {[%clk 00:44:51]} {[%emt 00:00:18]} 6. d4 {[%clk 00:38:44]} cxd4 {[%clk
00:44:51]} {[%emt 00:00:10]} 7. cxd4 {[%clk 00:38:52]} {[%emt 00:00:02]} O-O
{[%clk 00:44:58]} {[%emt 00:00:02]} 8. Ne5 {[%clk 00:36:12]} {[%emt 00:02:51]}
Ne4 {[%clk 00:39:02]} {[%emt 00:06:05]} 9. Nc3 {[%clk 00:31:17]} {[%emt
00:05:07]} Nxc3 {[%clk 00:38:28]} {[%emt 00:00:43]} 10. bxc3 {[%clk 00:31:25]}
{[%emt 00:00:02]} Nc6 {[%clk 00:38:37]} {[%emt 00:00:01]} 11. Nxc6 {[%clk
00:31:33]} {[%emt 00:00:02]} bxc6 {[%clk 00:38:46]} 12. Qa4 {[%clk 00:29:16]}
{[%emt 00:02:27]} Bd7 {[%clk 00:36:39]} {[%emt 00:02:17]} 13. Ba3 {[%clk
00:28:15]} {[%emt 00:01:11]} Re8 {[%clk 00:36:13]} {[%emt 00:00:36]} 14. Bc5
{[%clk 00:22:09]} {[%emt 00:06:17]} e5 {[%clk 00:36:00]} {[%emt 00:00:23]} 15.
Rfe1 {[%clk 00:20:10]} {[%emt 00:02:09]} e4 {[%clk 00:34:27]} {[%emt 00:01:42]}
16. e3 {[%clk 00:17:59]} {[%emt 00:02:22]} h5 {[%clk 00:32:46]} {[%emt
00:01:51]} 17. Rab1 {[%clk 00:17:55]} {[%emt 00:00:14]} Qc8 {[%clk 00:29:30]}
{[%emt 00:03:26]} 18. Qb4 {[%clk 00:16:43]} {[%emt 00:01:22]} Bg4 {[%clk
00:25:42]} {[%emt 00:03:57]} 19. Qb7 {[%clk 00:16:06]} {[%emt 00:00:47]} Qf5
{[%clk 00:25:17]} {[%emt 00:00:34]} 20. Qxc6 {[%clk 00:11:29]} {[%emt
00:04:49]} Bf3 {[%clk 00:23:39]} {[%emt 00:01:48]} 21. Bf1 {[%clk 00:10:36]}
{[%emt 00:01:04]} h4 {[%clk 00:23:10]} {[%emt 00:00:38]} 22. c4 {[%clk
00:09:16]} {[%emt 00:01:29]} dxc4 {[%clk 00:19:09]} {[%emt 00:04:11]} 23. Bxc4
{[%clk 00:08:31]} {[%emt 00:00:56]} hxg3 {[%clk 00:18:13]} {[%emt 00:01:06]} 24.
fxg3 {[%clk 00:08:26]} {[%emt 00:00:15]} Qh3 {[%clk 00:12:54]} {[%emt
00:05:29]} 25. Rb2 {[%clk 00:06:39]} {[%emt 00:01:56]} Rab8 {[%clk 00:05:49]}
{[%emt 00:07:15]} 26. Rf2 {[%clk 00:06:31]} {[%emt 00:00:19]} Qh5 {[%clk
00:05:01]} {[%emt 00:00:57]} 27. Qd5 {[%clk 00:04:17]} {[%emt 00:02:24]} Qxd5
{[%clk 00:05:02]} {[%emt 00:00:09]} 28. Bxd5 {[%clk 00:04:26]} Bh6 {[%clk
00:05:04]} {[%emt 00:00:09]} 29. Bxa7 {[%emt 00:01:06]} Rbc8 {[%clk 00:04:38]}
{[%emt 00:00:34]} 30. Bc5 {[%clk 00:02:42]} {[%emt 00:01:00]} Re5 {[%clk
00:01:20]} {[%emt 00:03:26]} 31. Rxf3 {[%clk 00:00:19]} {[%emt 00:02:35]} Rxd5
{[%clk 00:00:49]} {[%emt 00:00:40]} 32. Rf2 {[%clk 00:00:14]} {[%emt 00:00:15]}
Ra8 {[%clk 00:00:55]} {[%emt 00:00:04]} 33. Rb2 {[%clk 00:00:19]} {[%emt
00:00:06]} Rf5 {[%clk 00:00:58]} {[%emt 00:00:07]} 34. Ree2 {[%clk 00:00:14]}
{[%emt 00:00:14]} Rf3 {[%clk 00:00:46]} {[%emt 00:00:22]} 35. Rb3 {[%clk
00:00:18]} {[%emt 00:00:07]} g5 {[%clk 00:00:32]} {[%emt 00:00:23]} 36. d5
{[%clk 00:00:15]} {[%emt 00:00:13]} Rf5 {[%clk 00:00:27]} {[%emt 00:00:14]} 37.
Rd2 {[%clk 00:00:13]} {[%emt 00:00:13]} Rd8 {[%clk 00:00:28]} {[%emt 00:00:08]}
38. Rb4 {[%clk 00:00:11]} {[%emt 00:00:13]} Rc8 {[%clk 00:00:17]} {[%emt
00:00:21]} 39. Be7 {[%clk 00:00:13]} {[%emt 00:00:09]} Rc1+ {[%clk 00:00:18]}
{[%emt 00:00:08]} 40. Kg2 {[%clk 00:00:22]} Rff1 {[%clk 00:00:19]} {[%emt
00:00:09]} 41. Rxe4 {[%clk 00:00:28]} {[%emt 00:00:05]} f5 {[%clk 00:00:27]}
{[%emt 00:00:02]} 42. Rc4 {[%clk 00:00:26]} {[%emt 00:00:12]} Rce1 {[%clk
00:00:24]} {[%emt 00:00:12]} 43. Bxg5 {[%clk 00:00:14]} {[%emt 00:00:22]} Bxg5
{[%clk 00:00:29]} {[%emt 00:00:06]} 44. d6 {[%clk 00:00:22]} {[%emt 00:00:02]}
Rg1+ {[%clk 00:00:20]} {[%emt 00:00:19]} 45. Kh3 {[%clk 00:00:31]} {[%emt
00:00:01]} Rxe3 {[%clk 00:00:22]} {[%emt 00:00:08]} 46. d7 {[%clk 00:00:40]}
{[%emt 00:00:01]} Re6 {[%clk 00:00:19]} {[%emt 00:00:12]} 47. d8=Q+ {[%clk
00:00:30]} {[%emt 00:00:21]} Bxd8 {[%clk 00:00:28]} {[%emt 00:00:01]} 48. Rxd8+
{[%clk 00:00:39]} Kf7 {[%clk 00:00:35]} {[%emt 00:00:03]} 49. Rc7+ {[%clk
00:00:48]} {[%emt 00:00:01]} Kf6 {[%clk 00:00:43]} 50. Rf8+ {[%clk 00:00:58]}
{[%emt 00:00:01]} Kg6 {[%clk 00:00:32]} {[%emt 00:00:20]} 51. Rg8+ {[%clk
00:00:42]} {[%emt 00:00:26]} Kf6 {[%clk 00:00:38]} {[%emt 00:00:04]} 52. Rc5
{[%clk 00:00:19]} {[%emt 00:00:34]} Re2 {[%clk 00:00:28]} {[%emt 00:00:19]} 53.
Rf8+ {[%clk 00:00:21]} {[%emt 00:00:08]} Kg7 {[%clk 00:00:28]} {[%emt
00:00:08]} 54. Rfxf5 {[%clk 00:00:16]} {[%emt 00:00:18]} Rgg2 {[%clk 00:00:36]}
{[%emt 00:00:02]} 55. a4 {[%clk 00:00:21]} {[%emt 00:00:05]} Rxh2+ {[%clk
00:00:42]} {[%emt 00:00:04]} 56. Kg4 {[%clk 00:00:30]} Re4+ {[%clk 00:00:42]}
{[%emt 00:00:10]} 57. Rf4 {[%clk 00:00:38]} {[%emt 00:00:02]} Re3 {[%clk
00:00:47]} {[%emt 00:00:05]} 58. Rc7+ {[%clk 00:00:17]} {[%emt 00:00:31]} Kg6
{[%clk 00:00:34]} {[%emt 00:00:23]} 59. Rb4 {[%clk 00:00:24]} {[%emt 00:00:03]}
Re6 {[%clk 00:00:32]} {[%emt 00:00:11]} 60. a5 {[%clk 00:00:24]} {[%emt
00:00:10]} Ra2 {[%clk 00:00:32]} {[%emt 00:00:10]} 61. Rb6 {[%clk 00:00:15]}
{[%emt 00:00:19]} Kf6 {[%clk 00:00:15]} {[%emt 00:00:27]} 62. Rxe6+ {[%clk
00:00:12]} {[%emt 00:00:13]} Kxe6 {[%clk 00:00:25]} {[%emt 00:00:01]} 63. Ra7
{[%clk 00:00:14]} {[%emt 00:00:08]} Rb2 {[%clk 00:00:14]} {[%emt 00:00:19]} 64.
Ra6+ {[%clk 00:00:18]} {[%emt 00:00:08]} Kd7 {[%clk 00:00:13]} {[%emt
00:00:11]} 65. Kh4 {[%clk 00:00:16]} {[%emt 00:00:11]} Rh2+ {[%clk 00:00:21]}
{[%emt 00:00:03]} 66. Kg5 {[%clk 00:00:25]} {[%emt 00:00:01]} Rh8 {[%clk
00:00:26]} {[%emt 00:00:04]} 67. g4 {[%clk 00:00:31]} {[%emt 00:00:05]} Rg8+
{[%clk 00:00:34]} {[%emt 00:00:02]} 68. Rg6 {[%clk 00:00:39]} {[%emt 00:00:02]}
Rb8 {[%clk 00:00:38]} {[%emt 00:00:06]} 69. Kh6 {[%clk 00:00:28]} {[%emt
00:00:21]} Ke7 {[%clk 00:00:25]} {[%emt 00:00:22]} 70. a6 {[%clk 00:00:27]}
{[%emt 00:00:11]} Rb4 {[%clk 00:00:13]} {[%emt 00:00:19]} 71. a7 {[%clk
00:00:31]} {[%emt 00:00:10]} Ra4 {[%clk 00:00:22]} 72. Rg8 {[%clk 00:00:40]}
{[%emt 00:00:01]} Ra6+ {[%clk 00:00:14]} {[%emt 00:00:18]} 73. Kh5 {[%clk
00:00:40]} {[%emt 00:00:10]} Ra5+ {[%clk 00:00:18]} {[%emt 00:00:06]} 74. g5
{[%emt 00:00:19]} 1-0

[Event "FIDE U16 Olympiad_boards_1-80"]
[Site "Eindhoven, Netherlands"]
[Date "2023.08.14"]
[Round "2.23"]
[White "Azadaliyev, Jahandar"]
[Black "Moldagali, Beksultan"]
[Result "0-1"]
[TimeControl "2700+10"]
[WhiteElo "2156"]
[BlackElo "1883"]

1. d4 {[%clk 00:45:15]} {[%emt 00:00:04]} d5 {[%clk 00:45:13]} {[%emt
00:00:07]} 2. c4 {[%clk 00:45:24]} {[%emt 00:00:02]} e6 {[%clk 00:45:21]}
{[%emt 00:00:02]} 3. Nc3 {[%clk 00:45:32]} {[%emt 00:00:02]} a6 {[%clk
00:45:22]} {[%emt 00:00:09]} 4. cxd5 {[%clk 00:45:19]} {[%emt 00:00:24]} exd5
{[%clk 00:45:24]} {[%emt 00:00:06]} 5. Nf3 {[%clk 00:44:55]} {[%emt 00:00:34]}
c6 {[%clk 00:45:22]} {[%emt 00:00:12]} 6. Bg5 {[%clk 00:43:20]} {[%emt
00:01:47]} Be7 {[%clk 00:44:02]} {[%emt 00:01:29]} 7. h4 {[%clk 00:36:48]}
{[%emt 00:06:41]} h6 {[%clk 00:38:13]} {[%emt 00:05:59]} 8. Bf4 {[%clk
00:35:30]} {[%emt 00:01:28]} Bd6 {[%clk 00:35:21]} {[%emt 00:03:03]} 9. Qd2
{[%clk 00:31:14]} {[%emt 00:04:25]} Bf5 {[%clk 00:34:45]} {[%emt 00:00:46]} 10.
Bxd6 {[%clk 00:30:03]} {[%emt 00:01:22]} Qxd6 {[%clk 00:34:53]} {[%emt
00:00:02]} 11. Ne5 {[%clk 00:30:09]} {[%emt 00:00:04]} Nd7 {[%clk 00:31:44]}
{[%emt 00:03:19]} 12. Qf4 {[%clk 00:28:10]} {[%emt 00:02:09]} Ne7 {[%clk
00:31:07]} {[%emt 00:00:47]} 13. e3 {[%clk 00:22:14]} {[%emt 00:06:06]} Qb4
{[%clk 00:25:16]} {[%emt 00:06:01]} 14. O-O-O {[%clk 00:21:47]} {[%emt
00:00:37]} Nxe5 {[%clk 00:22:37]} {[%emt 00:02:48]} 15. Qxe5 {[%clk 00:21:30]}
{[%emt 00:00:27]} f6 {[%clk 00:22:05]} {[%emt 00:00:43]} 16. Qf4 {[%clk
00:20:03]} {[%emt 00:01:37]} O-O-O {[%clk 00:20:39]} {[%emt 00:01:35]} 17. g4
{[%clk 00:20:02]} {[%emt 00:00:12]} Bg6 {[%clk 00:17:46]} {[%emt 00:03:03]} 18.
Bh3 {[%clk 00:19:29]} {[%emt 00:00:42]} Qd6 {[%clk 00:17:00]} {[%emt 00:00:56]}
19. Qxd6 {[%clk 00:14:22]} {[%emt 00:05:18]} Rxd6 {[%clk 00:17:09]} {[%emt
00:00:01]} 20. Rdg1 {[%clk 00:14:31]} Kc7 {[%clk 00:14:47]} {[%emt 00:02:32]}
21. Kd2 {[%clk 00:14:17]} {[%emt 00:00:24]} Be4 {[%clk 00:14:19]} {[%emt
00:00:38]} 22. Bg2 {[%clk 00:13:15]} {[%emt 00:01:12]} Bxg2 {[%clk 00:14:17]}
{[%emt 00:00:12]} 23. Rxg2 {[%clk 00:13:24]} {[%emt 00:00:01]} g6 {[%clk
00:12:13]} {[%emt 00:02:14]} 24. Ne2 {[%clk 00:12:43]} {[%emt 00:00:51]} b6
{[%clk 00:10:57]} {[%emt 00:01:25]} 25. Rgh2 {[%clk 00:10:39]} {[%emt
00:02:14]} c5 {[%clk 00:08:35]} {[%emt 00:02:33]} 26. Rh3 {[%clk 00:09:20]}
{[%emt 00:01:29]} Kd7 {[%clk 00:07:37]} {[%emt 00:01:07]} 27. Rf3 {[%clk
00:09:13]} {[%emt 00:00:17]} Nc6 {[%clk 00:07:17]} {[%emt 00:00:30]} 28. Nf4
{[%clk 00:04:59]} {[%emt 00:04:24]} Rg8 {[%clk 00:06:40]} {[%emt 00:00:47]} 29.
dxc5 {[%clk 00:04:56]} {[%emt 00:00:14]} bxc5 {[%clk 00:06:39]} {[%emt
00:00:11]} 30. Nd3 {[%clk 00:04:27]} {[%emt 00:00:39]} c4 {[%clk 00:03:55]}
{[%emt 00:02:54]} 31. Nc5+ {[%clk 00:04:34]} {[%emt 00:00:03]} Ke7 {[%clk
00:04:04]} 32. g5 {[%clk 00:04:11]} {[%emt 00:00:33]} fxg5 {[%clk 00:03:54]}
{[%emt 00:00:20]} 33. hxg5 {[%clk 00:04:18]} {[%emt 00:00:03]} h5 {[%clk
00:03:57]} {[%emt 00:00:04]} 34. Rh4 {[%clk 00:04:14]} {[%emt 00:00:16]} Ne5
{[%clk 00:03:57]} {[%emt 00:00:10]} 35. Rff4 {[%clk 00:04:10]} {[%emt
00:00:14]} Rc8 {[%clk 00:02:51]} {[%emt 00:01:17]} 36. Na4 {[%clk 00:03:58]}
{[%emt 00:00:22]} Nf7 {[%clk 00:02:54]} {[%emt 00:00:07]} 37. Nc3 {[%clk
00:02:31]} {[%emt 00:01:37]} Nxg5 {[%clk 00:02:56]} {[%emt 00:00:07]} 38. Rh1
{[%clk 00:02:21]} {[%emt 00:00:20]} Nf7 {[%clk 00:02:05]} {[%emt 00:01:01]} 39.
Rfh4 {[%clk 00:02:18]} {[%emt 00:00:13]} Nh6 {[%clk 00:01:47]} {[%emt
00:00:28]} 40. Rg1 {[%clk 00:02:09]} {[%emt 00:00:19]} Nf5 {[%clk 00:01:53]}
{[%emt 00:00:05]} 41. Rf4 {[%clk 00:02:18]} Rcd8 {[%clk 00:01:29]} {[%emt
00:00:35]} 42. Ne2 {[%clk 00:01:41]} {[%emt 00:00:46]} Rh8 {[%clk 00:00:37]}
{[%emt 00:01:02]} 43. Kc3 {[%clk 00:01:46]} {[%emt 00:00:05]} h4 {[%clk
00:00:28]} {[%emt 00:00:18]} 44. e4 {[%clk 00:01:29]} {[%emt 00:00:28]} dxe4
{[%clk 00:00:17]} {[%emt 00:00:22]} 45. Rxe4+ {[%clk 00:01:36]} {[%emt
00:00:03]} Kf7 {[%clk 00:00:26]} {[%emt 00:00:01]} 46. Rxc4 {[%clk 00:00:30]}
{[%emt 00:01:16]} Rhd8 {[%clk 00:00:34]} {[%emt 00:00:01]} 47. Nf4 {[%clk
00:00:36]} {[%emt 00:00:04]} Nd4 {[%clk 00:00:18]} {[%emt 00:00:26]} 48. Rg4
{[%clk 00:00:21]} {[%emt 00:00:25]} Nf3 {[%clk 00:00:17]} {[%emt 00:00:11]} 49.
Rc7+ {[%clk 00:00:22]} {[%emt 00:00:09]} Kf6 {[%clk 00:00:14]} {[%emt
00:00:14]} 50. Rxg6+ {[%clk 00:00:30]} {[%emt 00:00:01]} Kf5 {[%clk 00:00:23]}
51. Rf7+ {[%clk 00:00:39]} {[%emt 00:00:01]} Ke5 {[%clk 00:00:29]} {[%emt
00:00:05]} 52. Rxd6 {[%clk 00:00:28]} {[%emt 00:00:21]} Kxd6 {[%clk 00:00:34]}
{[%emt 00:00:05]} 53. Ng6 {[%clk 00:00:23]} {[%emt 00:00:15]} Rc8+ {[%clk
00:00:18]} {[%emt 00:00:25]} 54. Kd3 {[%clk 00:00:20]} {[%emt 00:00:13]} Ne1+
{[%clk 00:00:20]} {[%emt 00:00:09]} 55. Kd2 {[%clk 00:00:28]} {[%emt 00:00:02]}
Ng2 {[%clk 00:00:28]} {[%emt 00:00:02]} 56. Rh7 {[%clk 00:00:28]} {[%emt
00:00:10]} Rc4 {[%clk 00:00:31]} {[%emt 00:00:07]} 57. Rh6 {[%clk 00:00:26]}
{[%emt 00:00:11]} Kc5 {[%clk 00:00:31]} {[%emt 00:00:09]} 58. Rh5+ {[%clk
00:00:28]} {[%emt 00:00:09]} Kd6 {[%clk 00:00:26]} {[%emt 00:00:16]} 59. Kd3
{[%clk 00:00:23]} {[%emt 00:00:14]} Rg4 {[%clk 00:00:32]} {[%emt 00:00:05]} 60.
Rh6 {[%clk 00:00:31]} {[%emt 00:00:02]} Kc5 {[%clk 00:00:29]} {[%emt 00:00:12]}
61. f3 {[%clk 00:00:19]} {[%emt 00:00:22]} Rxg6 {[%clk 00:00:35]} {[%emt
00:00:05]} 62. Rh5+ {[%clk 00:00:23]} {[%emt 00:00:05]} Kc6 {[%clk 00:00:41]}
{[%emt 00:00:04]} 63. Ke4 {[%clk 00:00:30]} {[%emt 00:00:03]} Rf6 {[%clk
00:00:35]} {[%emt 00:00:16]} 64. Rg5 {[%clk 00:00:32]} {[%emt 00:00:09]} Nf4
{[%clk 00:00:29]} {[%emt 00:00:15]} 65. Rg1 {[%clk 00:00:15]} {[%emt 00:00:27]}
Ne6 {[%clk 00:00:27]} {[%emt 00:00:12]} 66. Rh1 {[%clk 00:00:16]} {[%emt
00:00:10]} Rh6 {[%clk 00:00:35]} {[%emt 00:00:02]} 67. f4 {[%clk 00:00:23]}
{[%emt 00:00:03]} Kd6 {[%clk 00:00:40]} {[%emt 00:00:05]} 68. f5 {[%clk
00:00:31]} {[%emt 00:00:01]} Ng5+ {[%clk 00:00:47]} {[%emt 00:00:04]} 69. Kf4
{[%clk 00:00:40]} Nf7 {[%clk 00:00:55]} {[%emt 00:00:02]} 70. Rh3 {[%clk
00:00:35]} {[%emt 00:00:15]} Ke7 {[%clk 00:00:57]} {[%emt 00:00:08]} 71. b4
{[%clk 00:00:41]} {[%emt 00:00:04]} Kf6 {[%clk 00:00:59]} {[%emt 00:00:08]} 72.
a4 {[%clk 00:00:30]} {[%emt 00:00:21]} Rh5 {[%clk 00:00:27]} {[%emt 00:00:42]}
73. Kg4 {[%clk 00:00:27]} {[%emt 00:00:13]} Rg5+ {[%clk 00:00:33]} {[%emt
00:00:04]} 74. Kxh4 {[%clk 00:00:34]} {[%emt 00:00:03]} Rxf5 {[%clk 00:00:32]}
{[%emt 00:00:12]} 75. Rb3 {[%clk 00:00:32]} {[%emt 00:00:12]} Nd6 {[%clk
00:00:31]} {[%emt 00:00:11]} 76. Kg4 {[%clk 00:00:33]} {[%emt 00:00:09]} Rd5
{[%clk 00:00:38]} {[%emt 00:00:02]} 77. b5 {[%clk 00:00:32]} {[%emt 00:00:12]}
a5 {[%clk 00:00:48]} 78. b6 {[%clk 00:00:31]} {[%emt 00:00:11]} Nb7 {[%clk
00:00:53]} {[%emt 00:00:05]} 79. Kf3 {[%clk 00:00:18]} {[%emt 00:00:23]} Ke6
{[%clk 00:00:57]} {[%emt 00:00:05]} 80. Rc3 {[%clk 00:00:19]} {[%emt 00:00:09]}
Rc5 {[%clk 00:00:54]} {[%emt 00:00:13]} 81. Rxc5 {[%clk 00:00:16]} {[%emt
00:00:14]} Nxc5 {[%clk 00:01:01]} {[%emt 00:00:03]} 82. Ke3 {[%clk 00:00:24]}
{[%emt 00:00:02]} Kd5 {[%clk 00:01:06]} {[%emt 00:00:05]} 83. Kd2 {[%clk
00:00:32]} {[%emt 00:00:01]} Kc6 {[%clk 00:01:13]} {[%emt 00:00:03]} 84. Kc3
{[%clk 00:00:36]} {[%emt 00:00:07]} Nxa4+ {[%clk 00:01:20]} {[%emt 00:00:03]}
85. Kb3 {[%clk 00:00:45]} Nxb6 {[%clk 00:01:28]} {[%emt 00:00:01]} 86. Kb2
{[%clk 00:00:54]} Kb5 {[%clk 00:01:37]} {[%emt 00:00:01]} 87. Kb3 {[%clk
00:01:03]} a4+ {[%clk 00:01:46]} {[%emt 00:00:02]} 88. Kc2 {[%clk 00:01:11]}
{[%emt 00:00:01]} Kb4 {[%clk 00:01:50]} {[%emt 00:00:06]} 89. Kb1 {[%clk
00:01:20]} {[%emt 00:00:01]} Nd5 {[%clk 00:01:56]} {[%emt 00:00:04]} 90. Kc2
{[%clk 00:01:28]} {[%emt 00:00:02]} Ne3+ {[%clk 00:02:05]} {[%emt 00:00:01]} 91.
Kb1 {[%clk 00:01:37]} {[%emt 00:00:01]} Kb3 {[%clk 00:02:13]} {[%emt 00:00:02]}
0-1